bitfinex-derivatives/quotes_BTCF0:USTF0_20251228
["timestamp","ask_amount","ask_price","bid_price","bid_amount"]
[1766907550126,0.02487605,87735.0,87724.0,0.0684484]
[1766907550327,0.02487605,87734.0,87724.0,0.0684484]
[1766907550527,0.00017099,87739.0,87724.0,0.0684484]
[1766907550729,0.02487615,87738.0,87724.0,0.0684484]
[1766907550921,0.02487615,87737.0,87724.0,0.0684484]
[1766907551120,0.02487615,87736.0,87724.0,0.0684484]
[1766907551321,0.02487615,87735.0,87724.0,0.0684484]
[1766907551529,0.02487615,87734.0,87724.0,0.0684484]
[1766907551828,0.00017099,87739.0,87724.0,0.0684484]
[1766907552029,0.0248762,87738.0,87724.0,0.0684484]
[1766907552225,0.0248762,87737.0,87724.0,0.0684484]
[1766907552426,0.00017099,87739.0,87724.0,0.0684484]
[1766907552427,0.0248762,87736.0,87724.0,0.0684484]
[1766907552728,0.0248762,87735.0,87724.0,0.0684484]
[1766907552928,0.0248762,87734.0,87724.0,0.0684484]
[1766907553128,0.00017099,87739.0,87724.0,0.0684484]
[1766907553329,0.02487616,87738.0,87724.0,0.0684484]
[1766907553528,0.02487616,87737.0,87724.0,0.0684484]
[1766907553730,0.02487616,87736.0,87724.0,0.0684484]
[1766907553930,0.02487616,87735.0,87724.0,0.0684484]
[1766907554120,0.02487616,87734.0,87724.0,0.0684484]
[1766907554321,0.00017099,87739.0,87724.0,0.0684484]
[1766907554529,0.02487614,87738.0,87724.0,0.0684484]
[1766907554729,0.02487614,87737.0,87724.0,0.0684484]
[1766907554929,0.02487614,87736.0,87724.0,0.0684484]
[1766907555227,0.02487614,87735.0,87724.0,0.0684484]
[1766907555428,0.02487614,87734.0,87724.0,0.0684484]
[1766907555630,0.00017099,87739.0,87724.0,0.0684484]
[1766907555829,0.02487612,87738.0,87724.0,0.0684484]
[1766907556028,0.02487612,87737.0,87724.0,0.0684484]
[1766907556229,0.02487612,87736.0,87724.0,0.0684484]
[1766907556530,0.02487612,87735.0,87724.0,0.0684484]
[1766907556730,0.02487612,87734.0,87724.0,0.0684484]
[1766907557032,0.00017099,87739.0,87724.0,0.0684484]
[1766907557230,0.02487609,87738.0,87724.0,0.0684484]
[1766907557426,0.02487609,87737.0,87724.0,0.0684484]
[1766907557633,0.02487609,87736.0,87724.0,0.0684484]
[1766907557934,0.02487609,87735.0,87724.0,0.0684484]
[1766907558133,0.02487609,87734.0,87724.0,0.0684484]
[1766907558332,0.00017099,87739.0,87724.0,0.0684484]
[1766907558530,0.02487607,87738.0,87724.0,0.0684484]
[1766907558729,0.02487607,87737.0,87724.0,0.0684484]
[1766907558931,0.02487607,87736.0,87724.0,0.0684484]
[1766907559134,0.02487607,87735.0,87724.0,0.0684484]
[1766907559333,0.02487607,87734.0,87724.0,0.0684484]
[1766907559634,0.00017099,87739.0,87724.0,0.0684484]
[1766907559931,0.02487605,87738.0,87724.0,0.0684484]
[1766907560131,0.02487605,87737.0,87724.0,0.0684484]
[1766907560332,0.02487605,87736.0,87724.0,0.0684484]
[1766907560527,0.02487605,87735.0,87724.0,0.0684484]
[1766907560826,0.02487605,87734.0,87724.0,0.0684484]
[1766907561027,0.00017099,87739.0,87724.0,0.0684484]
[1766907561227,0.02487605,87738.0,87724.0,0.0684484]
[1766907561431,0.02487605,87737.0,87724.0,0.0684484]
[1766907561632,0.00017099,87739.0,87724.0,0.0684484]
[1766907561633,0.02487605,87736.0,87724.0,0.0684484]
[1766907561833,0.02487605,87735.0,87724.0,0.0684484]
[1766907562025,0.02487605,87734.0,87724.0,0.0684484]
[1766907562224,0.00017099,87739.0,87724.0,0.0684484]
[1766907562431,0.02487607,87738.0,87724.0,0.0684484]
[1766907562625,0.02487607,87737.0,87724.0,0.0684484]
[1766907562824,0.02487607,87736.0,87724.0,0.0684484]
[1766907563032,0.02487607,87735.0,87724.0,0.0684484]
[1766907563338,0.02487607,87734.0,87724.0,0.0684484]
[1766907563538,0.00017099,87739.0,87724.0,0.0684484]
[1766907563836,0.02487612,87738.0,87724.0,0.0684484]
[1766907564038,0.02487612,87737.0,87724.0,0.0684484]
[1766907564238,0.02487612,87736.0,87724.0,0.0684484]
[1766907564538,0.02487612,87735.0,87724.0,0.0684484]
[1766907564741,0.02487612,87734.0,87724.0,0.0684484]
[1766907564940,0.00017099,87739.0,87724.0,0.0684484]
[1766907565139,0.02487623,87738.0,87724.0,0.0684484]
[1766907565341,0.02487623,87737.0,87724.0,0.0684484]
[1766907565641,0.02487623,87736.0,87724.0,0.0684484]
[1766907565938,0.02487623,87735.0,87724.0,0.0684484]
[1766907566141,0.02487623,87734.0,87724.0,0.0684484]
[1766907566342,0.00017099,87739.0,87724.0,0.0684484]
[1766907566541,0.02487636,87738.0,87724.0,0.0684484]
[1766907566839,0.02487636,87737.0,87724.0,0.0684484]
[1766907567042,0.02487636,87736.0,87724.0,0.0684484]
[1766907567343,0.02487636,87735.0,87724.0,0.0684484]
[1766907567638,0.02487636,87734.0,87724.0,0.0684484]
[1766907567841,0.00017099,87739.0,87724.0,0.0684484]
[1766907568040,0.02487705,87738.0,87724.0,0.0684484]
[1766907568241,0.02487705,87737.0,87724.0,0.0684484]
[1766907568540,0.00017099,87739.0,87724.0,0.0684484]
[1766907568541,0.02487705,87736.0,87724.0,0.0684484]
[1766907568741,0.02487705,87735.0,87724.0,0.0684484]
[1766907568941,0.02487705,87734.0,87724.0,0.0684484]
[1766907569140,0.00017099,87739.0,87724.0,0.0684484]
[1766907569332,0.02487701,87738.0,87724.0,0.0684484]
[1766907569533,0.00017099,87739.0,87724.0,0.0684484]
[1766907569534,0.02487701,87737.0,87724.0,0.0684484]
[1766907569734,0.02487701,87736.0,87724.0,0.0684484]
[1766907569935,0.02487701,87735.0,87724.0,0.0684484]
[1766907570134,0.02487701,87734.0,87724.0,0.0684484]
[1766907570334,0.00017099,87739.0,87724.0,0.0684484]
[1766907570641,0.02487705,87738.0,87724.0,0.0684484]
[1766907570841,0.02487705,87737.0,87724.0,0.0684484]
[1766907571039,0.02487705,87736.0,87724.0,0.0684484]
[1766907571233,0.02487705,87735.0,87724.0,0.0684484]
[1766907571438,0.02487705,87734.0,87724.0,0.0684484]
[1766907571643,0.00017099,87739.0,87724.0,0.0684484]
[1766907571838,0.02487709,87738.0,87724.0,0.0684484]
[1766907572037,0.02487709,87737.0,87724.0,0.0684484]
[1766907572238,0.02487709,87736.0,87724.0,0.0684484]
[1766907572543,0.02487709,87735.0,87724.0,0.0684484]
[1766907572842,0.02487709,87734.0,87724.0,0.0684484]
[1766907573143,0.00017099,87739.0,87724.0,0.0684484]
[1766907573334,0.02487733,87738.0,87724.0,0.0684484]
[1766907573530,0.02487733,87737.0,87724.0,0.0684484]
[1766907573735,0.02487733,87736.0,87724.0,0.0684484]
[1766907573937,0.02487733,87735.0,87724.0,0.0684484]
[1766907574132,0.02487733,87734.0,87724.0,0.0684484]
[1766907574333,0.00017099,87739.0,87724.0,0.0684484]
[1766907574538,0.02487732,87738.0,87724.0,0.0684484]
[1766907574739,0.02487732,87737.0,87724.0,0.0684484]
[1766907574939,0.02487732,87736.0,87724.0,0.0684484]
[1766907575141,0.02487732,87735.0,87724.0,0.0684484]
[1766907575339,0.02487732,87734.0,87724.0,0.0684484]
[1766907575647,0.00017099,87739.0,87724.0,0.0684484]
[1766907575849,0.02487736,87738.0,87724.0,0.0684484]
[1766907576048,0.02487736,87737.0,87724.0,0.0684484]
[1766907576249,0.02487736,87736.0,87724.0,0.0684484]
[1766907576548,0.02487736,87735.0,87724.0,0.0684484]
[1766907576751,0.02487736,87734.0,87724.0,0.0684484]
[1766907576941,0.00017099,87739.0,87724.0,0.0684484]
[1766907577142,0.02481909,87738.0,87724.0,0.0684484]
[1766907577351,0.02481909,87737.0,87724.0,0.0684484]
[1766907577550,0.02481909,87736.0,87724.0,0.0684484]
[1766907577752,0.02481909,87735.0,87724.0,0.0684484]
[1766907577942,0.02481909,87734.0,87724.0,0.0684484]
[1766907578144,0.00017099,87739.0,87724.0,0.0684484]
[1766907578344,0.02481909,87738.0,87724.0,0.0684484]
[1766907578548,0.02481909,87737.0,87724.0,0.0684484]
[1766907578848,0.02481909,87736.0,87724.0,0.0684484]
[1766907579048,0.02481909,87735.0,87724.0,0.0684484]
[1766907579248,0.00017099,87739.0,87724.0,0.0684484]
[1766907579249,0.02481909,87734.0,87724.0,0.0684484]
[1766907579451,0.00017099,87739.0,87724.0,0.0684484]
[1766907579653,0.02481908,87738.0,87724.0,0.0684484]
[1766907579950,0.02481908,87737.0,87724.0,0.0684484]
[1766907580151,0.02481908,87736.0,87724.0,0.0684484]
[1766907580354,0.02481908,87735.0,87724.0,0.0684484]
[1766907580651,0.02481908,87734.0,87724.0,0.0684484]
[1766907580852,0.00017099,87739.0,87724.0,0.0684484]
[1766907581152,0.02481908,87738.0,87724.0,0.0684484]
[1766907581344,0.02481908,87737.0,87724.0,0.0684484]
[1766907581545,0.02481908,87736.0,87724.0,0.0684484]
[1766907581745,0.00017099,87739.0,87724.0,0.0684484]
[1766907581746,0.02481908,87735.0,87724.0,0.0684484]
[1766907581946,0.02481908,87734.0,87724.0,0.0684484]
[1766907582252,0.00017099,87739.0,87724.0,0.0684484]
[1766907582452,0.02481909,87738.0,87724.0,0.0684484]
[1766907582654,0.02481909,87737.0,87726.0,0.0114081]
[1766907582853,0.02481909,87736.0,87726.0,0.0114081]
[1766907583150,0.02481909,87735.0,87726.0,0.0114081]
[1766907583348,0.00017099,87739.0,87726.0,0.0114081]
[1766907583543,0.02481833,87738.0,87726.0,0.0114081]
[1766907583743,0.02481833,87737.0,87726.0,0.0114081]
[1766907583948,0.02481833,87736.0,87726.0,0.0114081]
[1766907584252,0.02481833,87735.0,87724.0,0.05704]
[1766907584453,0.00017099,87739.0,87724.0,0.05704]
[1766907584767,0.0114068,87737.0,87724.0,0.05704]
[1766907584944,0.011407,87735.0,87724.0,0.05704]
[1766907585145,0.00521143,87735.0,87724.0,0.05704]
[1766907585346,0.00521143,87735.0,87725.0,0.05704]
[1766907585551,0.0114067,87738.0,87725.0,0.05704]
[1766907586649,0.011407,87736.0,87725.0,0.05704]
[1766907586855,0.00017099,87739.0,87725.0,0.05704]
[1766907587655,0.0114067,87738.0,87725.0,0.05704]
[1766907595255,0.011407,87736.0,87725.0,0.05704]
[1766907596962,0.02477086,87735.0,87725.0,0.05704]
[1766907597162,0.02477086,87734.0,87725.0,0.05704]
[1766907597364,0.011407,87736.0,87725.0,0.05704]
[1766907597562,0.02477086,87735.0,87725.0,0.05704]
[1766907597862,0.02477086,87734.0,87725.0,0.05704]
[1766907598068,0.011407,87736.0,87725.0,0.05704]
[1766907598262,0.02477086,87735.0,87725.0,0.05704]
[1766907598561,0.02477086,87734.0,87725.0,0.05704]
[1766907598861,0.011407,87736.0,87725.0,0.05704]
[1766907599061,0.02477086,87735.0,87725.0,0.05704]
[1766907599260,0.02477086,87734.0,87725.0,0.05704]
[1766907599465,0.011407,87736.0,87725.0,0.05704]
[1766907599662,0.02477085,87735.0,87725.0,0.05704]
[1766907599863,0.02477085,87734.0,87725.0,0.05704]
[1766907600065,0.011407,87736.0,87725.0,0.05704]
[1766907600262,0.02477086,87735.0,87725.0,0.05704]
[1766907600464,0.02477086,87734.0,87725.0,0.05704]
[1766907600666,0.011407,87736.0,87725.0,0.05704]
[1766907600860,0.02477083,87735.0,87725.0,0.05704]
[1766907601062,0.02477083,87734.0,87725.0,0.05704]
[1766907601262,0.011407,87736.0,87725.0,0.05704]
[1766907601462,0.02477084,87735.0,87725.0,0.05704]
[1766907601663,0.02477084,87734.0,87725.0,0.05704]
[1766907601963,0.011407,87736.0,87725.0,0.05704]
[1766907602163,0.02477084,87735.0,87725.0,0.05704]
[1766907602363,0.02477084,87734.0,87725.0,0.05704]
[1766907602572,0.011407,87736.0,87725.0,0.05704]
[1766907602773,0.02477085,87735.0,87725.0,0.05704]
[1766907603072,0.02477085,87734.0,87725.0,0.05704]
[1766907603269,0.011407,87736.0,87725.0,0.05704]
[1766907603467,0.02477086,87735.0,87725.0,0.05704]
[1766907603670,0.02477086,87734.0,87725.0,0.05704]
[1766907603873,0.05151683,87740.0,87725.0,0.05704]
[1766907604064,0.05151683,87740.0,87726.0,0.02451611]
[1766907604065,0.07850379,87740.0,87726.0,0.02451611]
[1766907604376,0.10850379,87740.0,87726.0,0.0114082]
[1766907604675,0.11450379,87736.0,87726.0,0.0114082]
[1766907605279,0.10850379,87736.0,87726.0,0.0114082]
[1766907605471,0.11450379,87736.0,87726.0,0.0114082]
[1766907605671,0.10850379,87736.0,87726.0,0.0114082]
[1766907606183,0.10850379,87736.0,87725.0,0.05704]
[1766907606978,0.00017099,87739.0,87725.0,0.05704]
[1766907608184,0.00017099,87739.0,87725.0,0.0684483]
[1766907608586,0.00017099,87739.0,87727.0,0.011408]
[1766907608786,9.9e-07,87739.0,87727.0,0.011408]
[1766907610082,9.9e-07,87739.0,87725.0,0.05704]
[1766907610282,9.9e-07,87739.0,87726.0,0.0114081]
[1766907614381,9.9e-07,87739.0,87728.0,0.0114079]
[1766907615990,0.0244826,87738.0,87728.0,0.0114079]
[1766907616191,0.0244826,87737.0,87728.0,0.0114079]
[1766907616492,0.0244826,87736.0,87728.0,0.0114079]
[1766907616692,0.0244826,87735.0,87728.0,0.0114079]
[1766907616884,9.9e-07,87739.0,87728.0,0.0114079]
[1766907617085,0.02448244,87738.0,87728.0,0.0114079]
[1766907617289,0.02448244,87737.0,87728.0,0.0114079]
[1766907617589,0.02448244,87736.0,87728.0,0.0114079]
[1766907617790,0.02448244,87735.0,87728.0,0.0114079]
[1766907617993,9.9e-07,87739.0,87728.0,0.0114079]
[1766907618194,0.11450379,87740.0,87728.0,0.0114079]
[1766907618487,0.10850379,87740.0,87728.0,0.0114079]
[1766907618688,0.10250379,87740.0,87728.0,0.0114079]
[1766907618993,0.11450379,87740.0,87728.0,0.0114079]
[1766907620889,0.10850379,87740.0,87728.0,0.0114079]
[1766907621090,0.10250379,87740.0,87728.0,0.0114079]
[1766907622092,0.11450379,87740.0,87730.0,0.0114076]
[1766907622494,0.11450379,87740.0,87727.0,0.011408]
[1766907622694,0.11450379,87740.0,87725.0,0.05704]
[1766907625393,0.0114062,87742.0,87725.0,0.05704]
[1766907625600,0.11450379,87740.0,87726.0,0.0114082]
[1766907630108,0.02437763,87739.0,87726.0,0.0114082]
[1766907630299,0.02437763,87738.0,87726.0,0.0114082]
[1766907630498,0.02437763,87737.0,87726.0,0.0114082]
[1766907630699,0.02437763,87736.0,87726.0,0.0114082]
[1766907630900,0.11450379,87740.0,87726.0,0.0114082]
[1766907631103,0.02437765,87739.0,87726.0,0.0114082]
[1766907631303,0.02437765,87738.0,87726.0,0.0114082]
[1766907631505,0.02437765,87737.0,87726.0,0.0114082]
[1766907631703,0.02437765,87736.0,87726.0,0.0114082]
[1766907631901,0.11450379,87740.0,87726.0,0.0114082]
[1766907632104,0.02437795,87739.0,87726.0,0.0114082]
[1766907632307,0.02437795,87738.0,87726.0,0.0114082]
[1766907632503,0.02437795,87737.0,87726.0,0.0114082]
[1766907632705,0.02437795,87736.0,87726.0,0.0114082]
[1766907632903,0.11450379,87740.0,87726.0,0.0114082]
[1766907633105,0.02437833,87739.0,87726.0,0.0114082]
[1766907633305,0.02437833,87738.0,87726.0,0.0114082]
[1766907633504,0.02437833,87737.0,87726.0,0.0114082]
[1766907633804,0.02437833,87736.0,87726.0,0.0114082]
[1766907634005,0.11450379,87740.0,87726.0,0.0114082]
[1766907634204,0.02437879,87739.0,87726.0,0.0114082]
[1766907634405,0.02437879,87738.0,87726.0,0.0114082]
[1766907634596,0.02437879,87737.0,87726.0,0.0114082]
[1766907634800,0.02437879,87736.0,87726.0,0.0114082]
[1766907635000,0.11450379,87740.0,87726.0,0.0114082]
[1766907635210,0.02437909,87739.0,87726.0,0.0114082]
[1766907635405,0.02437909,87738.0,87726.0,0.0114082]
[1766907635604,0.02437909,87737.0,87726.0,0.0114082]
[1766907635806,0.02437909,87736.0,87726.0,0.0114082]
[1766907636006,0.11450379,87740.0,87726.0,0.0114082]
[1766907636306,0.02437944,87739.0,87726.0,0.0114082]
[1766907636507,0.02437944,87738.0,87726.0,0.0114082]
[1766907636812,0.02437944,87737.0,87726.0,0.0114082]
[1766907637110,0.02437944,87736.0,87726.0,0.0114082]
[1766907637310,0.11450379,87740.0,87726.0,0.0114082]
[1766907637613,0.02441056,87739.0,87726.0,0.0114082]
[1766907637813,0.02441056,87738.0,87726.0,0.0114082]
[1766907638012,0.02441056,87737.0,87726.0,0.0114082]
[1766907638213,0.02441056,87736.0,87726.0,0.0114082]
[1766907638409,0.02441056,87735.0,87726.0,0.0114082]
[1766907638708,0.11450379,87740.0,87726.0,0.0114082]
[1766907638908,0.02441112,87739.0,87726.0,0.0114082]
[1766907639110,0.02441112,87738.0,87726.0,0.0114082]
[1766907639309,0.02441112,87737.0,87726.0,0.0114082]
[1766907639511,0.02441112,87736.0,87726.0,0.0114082]
[1766907639712,0.02441112,87735.0,87726.0,0.0114082]
[1766907639912,0.11450379,87740.0,87726.0,0.0114082]
[1766907640112,0.02441113,87739.0,87726.0,0.0114082]
[1766907640314,0.02441113,87738.0,87726.0,0.0114082]
[1766907640513,0.02441113,87737.0,87726.0,0.0114082]
[1766907640812,0.02441113,87736.0,87726.0,0.0114082]
[1766907641115,0.02441113,87735.0,87726.0,0.0114082]
[1766907641414,0.11450379,87740.0,87726.0,0.0114082]
[1766907641612,0.02441112,87739.0,87726.0,0.0114082]
[1766907641805,0.02441112,87738.0,87726.0,0.0114082]
[1766907642002,0.02441112,87737.0,87726.0,0.0114082]
[1766907642208,0.02441112,87736.0,87726.0,0.0114082]
[1766907642417,0.02441112,87735.0,87726.0,0.0114082]
[1766907642716,0.11450379,87740.0,87726.0,0.0114082]
[1766907642920,0.02441119,87739.0,87726.0,0.0114082]
[1766907643111,0.02441119,87738.0,87726.0,0.0114082]
[1766907643411,0.02441119,87737.0,87726.0,0.0114082]
[1766907643711,0.02441119,87736.0,87726.0,0.0114082]
[1766907643910,0.02441119,87735.0,87726.0,0.0114082]
[1766907644112,0.11450379,87740.0,87726.0,0.0114082]
[1766907644306,0.02441129,87739.0,87726.0,0.0114082]
[1766907644508,0.02441129,87738.0,87726.0,0.0114082]
[1766907644704,0.02441129,87737.0,87726.0,0.0114082]
[1766907644918,0.02441129,87736.0,87726.0,0.0114082]
[1766907645112,0.02441129,87735.0,87726.0,0.0114082]
[1766907645312,0.11450379,87740.0,87726.0,0.0114082]
[1766907645515,0.02441135,87739.0,87726.0,0.0114082]
[1766907645812,0.02441135,87738.0,87726.0,0.0114082]
[1766907646012,0.02441135,87737.0,87726.0,0.0114082]
[1766907646220,0.02441135,87736.0,87726.0,0.0114082]
[1766907646416,0.02441135,87735.0,87726.0,0.0114082]
[1766907646617,0.11450379,87740.0,87726.0,0.0114082]
[1766907646916,0.02441144,87739.0,87726.0,0.0114082]
[1766907647116,0.02441144,87738.0,87726.0,0.0114082]
[1766907647317,0.02441144,87737.0,87726.0,0.0114082]
[1766907647516,0.02441144,87736.0,87726.0,0.0114082]
[1766907647717,0.02441144,87735.0,87726.0,0.0114082]
[1766907647918,0.11450379,87740.0,87726.0,0.0114082]
[1766907648217,0.02441157,87739.0,87726.0,0.0114082]
[1766907648416,0.11450379,87740.0,87726.0,0.0114082]
[1766907648417,0.02441157,87738.0,87726.0,0.0114082]
[1766907648620,0.02441157,87737.0,87726.0,0.0114082]
[1766907648820,0.02441157,87736.0,87726.0,0.0114082]
[1766907649123,0.02441157,87735.0,87726.0,0.0114082]
[1766907649321,0.11450379,87740.0,87726.0,0.0114082]
[1766907649522,0.02441176,87739.0,87726.0,0.0114082]
[1766907649722,0.02441176,87738.0,87726.0,0.0114082]
[1766907649922,0.02441176,87737.0,87726.0,0.0114082]
[1766907650124,0.02441176,87736.0,87726.0,0.0114082]
[1766907650325,0.11450379,87740.0,87726.0,0.0114082]
[1766907650326,0.02441176,87735.0,87726.0,0.0114082]
[1766907650527,0.11450379,87740.0,87726.0,0.0114082]
[1766907650727,0.02441186,87739.0,87726.0,0.0114082]
[1766907650926,0.02441186,87738.0,87726.0,0.0114082]
[1766907651130,0.02441186,87737.0,87726.0,0.0114082]
[1766907651427,0.02441186,87736.0,87726.0,0.0114082]
[1766907651729,0.02441186,87735.0,87726.0,0.0114082]
[1766907652029,0.11450379,87740.0,87726.0,0.0114082]
[1766907652229,0.02441192,87739.0,87726.0,0.0114082]
[1766907652423,0.02441192,87738.0,87726.0,0.0114082]
[1766907652625,0.02441192,87737.0,87726.0,0.0114082]
[1766907652823,0.02441192,87736.0,87726.0,0.0114082]
[1766907653030,0.02441192,87735.0,87726.0,0.0114082]
[1766907653233,0.11450379,87740.0,87726.0,0.0114082]
[1766907653432,0.02441195,87739.0,87726.0,0.0114082]
[1766907653629,0.02441195,87738.0,87726.0,0.0114082]
[1766907653827,0.02441195,87737.0,87726.0,0.0114082]
[1766907654027,0.02441195,87736.0,87726.0,0.0114082]
[1766907654226,0.02441195,87735.0,87726.0,0.0114082]
[1766907654427,0.11450379,87740.0,87726.0,0.0114082]
[1766907654628,0.02441197,87739.0,87726.0,0.0114082]
[1766907654828,0.02441197,87738.0,87726.0,0.0114082]
[1766907655029,0.02441197,87737.0,87726.0,0.0114082]
[1766907655328,0.02441197,87736.0,87726.0,0.0114082]
[1766907655528,0.02441197,87735.0,87726.0,0.0114082]
[1766907655734,0.11450379,87740.0,87726.0,0.0114082]
[1766907655932,0.024412,87739.0,87726.0,0.0114082]
[1766907656129,0.024412,87738.0,87726.0,0.0114082]
[1766907656328,0.024412,87737.0,87726.0,0.0114082]
[1766907656529,0.024412,87736.0,87726.0,0.0114082]
[1766907656730,0.024412,87735.0,87726.0,0.0114082]
[1766907656930,0.11450379,87740.0,87726.0,0.0114082]
[1766907657229,0.02441207,87739.0,87726.0,0.0114082]
[1766907657429,0.02441207,87738.0,87726.0,0.0114082]
[1766907657623,0.02441207,87737.0,87726.0,0.0114082]
[1766907657825,0.02441207,87736.0,87726.0,0.0114082]
[1766907658021,0.02441207,87735.0,87726.0,0.0114082]
[1766907658236,0.11450379,87740.0,87726.0,0.0114082]
[1766907658435,0.02441198,87739.0,87726.0,0.0114082]
[1766907658637,0.02441198,87738.0,87726.0,0.0114082]
[1766907658831,0.02441198,87737.0,87726.0,0.0114082]
[1766907659032,0.02441198,87736.0,87726.0,0.0114082]
[1766907659239,0.02441198,87735.0,87726.0,0.0114082]
[1766907659433,0.11450379,87740.0,87726.0,0.0114082]
[1766907659736,0.02441197,87739.0,87726.0,0.0114082]
[1766907659939,0.02441197,87738.0,87726.0,0.0114082]
[1766907660138,0.02441197,87737.0,87726.0,0.0114082]
[1766907660338,0.02441197,87736.0,87726.0,0.0114082]
[1766907660537,0.02441197,87735.0,87725.0,0.05704]
[1766907660742,0.11450379,87740.0,87725.0,0.05704]
[1766907660933,0.02441197,87739.0,87725.0,0.05704]
[1766907661234,0.11450379,87735.0,87720.0,0.0114089]
[1766907661439,0.11450379,87730.0,87721.0,0.097]
[1766907661640,0.11450379,87730.0,87713.0,0.01369008]
[1766907661837,0.11450379,87723.0,87714.0,0.154]
[1766907662031,0.11450379,87723.0,87711.0,0.09696]
[1766907662237,0.11450379,87723.0,87712.0,0.05704]
[1766907666034,0.00017099,87726.0,87712.0,0.05704]
[1766907673748,0.00017099,87726.0,87713.0,0.05704]
[1766907682755,0.01157919,87726.0,87713.0,0.05704]
[1766907687962,0.0114086,87724.0,87710.0,0.00017099]
[1766907688268,0.0114084,87725.0,87711.0,0.05704]
[1766907691165,0.00017099,87726.0,87711.0,0.05704]
[1766907697774,0.00017099,87726.0,87711.0,0.0684501]
[1766907700072,0.05704,87729.0,87715.0,0.0114095]
[1766907700378,0.05704,87731.0,87715.0,0.0114095]
[1766907700567,0.02437194,87730.0,87715.0,0.0114095]
[1766907700867,0.02437194,87729.0,87715.0,0.0114095]
[1766907701063,0.00021099,87731.0,87715.0,0.0114095]
[1766907701269,0.03604,87731.0,87715.0,0.0114095]
[1766907707281,0.03604,87731.0,87717.0,0.0114092]
[1766907710283,0.03604,87731.0,87720.0,0.011409]
[1766907712886,0.05704,87738.0,87720.0,0.011409]
[1766907713287,0.0242614,87735.0,87720.0,0.011409]
[1766907713486,0.0242614,87734.0,87720.0,0.011409]
[1766907713689,0.0242614,87733.0,87720.0,0.011409]
[1766907713888,0.05704,87738.0,87720.0,0.011409]
[1766907714089,0.0242607,87735.0,87720.0,0.011409]
[1766907714289,0.0242607,87734.0,87720.0,0.011409]
[1766907714480,0.0242607,87733.0,87720.0,0.011409]
[1766907714682,0.05704,87738.0,87720.0,0.011409]
[1766907714980,0.02425965,87735.0,87720.0,0.011409]
[1766907715181,0.02425965,87734.0,87720.0,0.011409]
[1766907715382,0.02425965,87733.0,87720.0,0.011409]
[1766907715689,0.05704,87738.0,87722.0,0.0114087]
[1766907715990,0.02425874,87735.0,87724.0,0.0114084]
[1766907716191,0.02425874,87734.0,87724.0,0.0114084]
[1766907716489,0.05704,87738.0,87724.0,0.0114084]
[1766907716679,0.02425791,87735.0,87724.0,0.0114084]
[1766907716882,0.02425791,87734.0,87724.0,0.0114084]
[1766907717081,0.05704,87738.0,87724.0,0.0114084]
[1766907717290,0.02425786,87735.0,87724.0,0.0114084]
[1766907717486,0.02425786,87734.0,87724.0,0.0114084]
[1766907717687,0.05704,87738.0,87724.0,0.0114084]
[1766907717887,0.02425697,87735.0,87724.0,0.0114084]
[1766907718089,0.02425697,87734.0,87724.0,0.0114084]
[1766907718290,0.05704,87738.0,87721.0,0.0114088]
[1766907718491,0.0242565,87735.0,87721.0,0.0114088]
[1766907718692,0.0242565,87734.0,87721.0,0.0114088]
[1766907718891,0.05704,87738.0,87721.0,0.0114088]
[1766907719091,0.0242565,87735.0,87721.0,0.0114088]
[1766907719290,0.0242565,87734.0,87721.0,0.0114088]
[1766907719591,0.05704,87738.0,87721.0,0.0114088]
[1766907719799,0.02425623,87735.0,87721.0,0.0114088]
[1766907720090,0.02425623,87734.0,87721.0,0.0114088]
[1766907720290,0.05704,87738.0,87721.0,0.0114088]
[1766907720591,0.02425636,87735.0,87721.0,0.0114088]
[1766907720785,0.02425636,87734.0,87721.0,0.0114088]
[1766907720985,0.05704,87738.0,87721.0,0.0114088]
[1766907721184,0.02425636,87735.0,87721.0,0.0114088]
[1766907721385,0.02425636,87734.0,87721.0,0.0114088]
[1766907721585,0.05704,87738.0,87721.0,0.0114088]
[1766907721785,0.02425625,87735.0,87721.0,0.0114088]
[1766907721994,0.02425625,87734.0,87721.0,0.0114088]
[1766907722192,0.108367,87736.0,87718.0,0.0114092]
[1766907722385,0.02425628,87735.0,87718.0,0.0114092]
[1766907722584,0.02425628,87734.0,87718.0,0.0114092]
[1766907722787,0.108367,87736.0,87718.0,0.0114092]
[1766907723084,0.02425633,87735.0,87718.0,0.0114092]
[1766907723286,0.02425633,87734.0,87718.0,0.0114092]
[1766907723481,0.108367,87736.0,87718.0,0.0114092]
[1766907723790,0.02425662,87735.0,87718.0,0.0114092]
[1766907723989,0.02425662,87734.0,87718.0,0.0114092]
[1766907724188,0.108367,87736.0,87718.0,0.0114092]
[1766907724389,0.02425707,87735.0,87718.0,0.0114092]
[1766907724595,0.02425707,87734.0,87718.0,0.0114092]
[1766907724796,0.108367,87736.0,87718.0,0.0114092]
[1766907724996,0.02425707,87735.0,87718.0,0.0114092]
[1766907725289,0.02425707,87734.0,87718.0,0.0114092]
[1766907725495,0.108367,87736.0,87718.0,0.0114092]
[1766907725691,0.02425767,87735.0,87718.0,0.0114092]
[1766907725893,0.02425767,87734.0,87718.0,0.0114092]
[1766907726190,0.108367,87736.0,87718.0,0.0114092]
[1766907726393,0.02425845,87735.0,87718.0,0.0114092]
[1766907726594,0.02425845,87734.0,87718.0,0.0114092]
[1766907726792,0.108367,87736.0,87718.0,0.0114092]
[1766907727092,0.02426218,87735.0,87718.0,0.0114092]
[1766907727300,0.02426218,87734.0,87718.0,0.0114092]
[1766907727496,0.0114072,87734.0,87718.0,0.0114092]
[1766907727998,0.11451682,87730.0,87718.0,0.0114092]
[1766907733197,0.11451682,87730.0,87719.0,0.05704]
[1766907745113,0.0114071,87735.0,87719.0,0.05704]
[1766907745411,0.11451682,87730.0,87719.0,0.05704]
[1766907757924,0.0114071,87735.0,87719.0,0.05704]
[1766907758126,0.11451682,87730.0,87719.0,0.05704]
[1766907766528,0.0114071,87735.0,87719.0,0.05704]
[1766907766728,0.11451682,87730.0,87719.0,0.05704]
[1766907787942,0.0114071,87735.0,87719.0,0.05704]
[1766907788141,0.02426473,87734.0,87719.0,0.05704]
[1766907788442,0.02426473,87733.0,87719.0,0.05704]
[1766907788642,0.02426473,87732.0,87719.0,0.05704]
[1766907788840,0.0114071,87735.0,87719.0,0.05704]
[1766907789042,0.02426489,87734.0,87719.0,0.05704]
[1766907789342,0.02426489,87733.0,87719.0,0.05704]
[1766907789641,0.02426489,87732.0,87719.0,0.05704]
[1766907789842,0.0114071,87735.0,87719.0,0.05704]
[1766907790038,0.02426498,87734.0,87719.0,0.05704]
[1766907790239,0.02426498,87733.0,87719.0,0.05704]
[1766907790440,0.02426498,87732.0,87719.0,0.05704]
[1766907790641,0.0114071,87735.0,87719.0,0.05704]
[1766907790841,0.02426616,87734.0,87719.0,0.05704]
[1766907791037,0.02426616,87733.0,87719.0,0.05704]
[1766907791338,0.02426616,87732.0,87719.0,0.05704]
[1766907791538,0.0114071,87735.0,87719.0,0.05704]